{"text_format":"1","workbook":"xlsx","n_sheets":2,"sheets":["Inmatning, löner","spec_mall"],"not_rendered":{"charts":0,"images":0,"macros":1,"external_links":0,"defined_names":7,"comments":0,"pivot_tables":0},"unopened":[],"bounds":{"document_bytes":16777216,"sheet_cells":100000,"rows_first":2000,"rows_last":500,"rows_between":2000,"halvings":0,"cell_chars":16384,"cell_head_chars":4096},"cells_cut":0,"cells_raw":0,"read":"whole","date_system":"1900"}

{"sheet":"Inmatning, löner","index":0,"n_rows":13,"n_cols":24,"rows_kept":13,"cut":false,"hidden":false,"merged":[]}
[null,"LÖNEKALKYLATOR",null,null,null,null,null,null,null,null,"PERIOD SOM SLUTAR:",41372,null,"FÖRETAGSNAMN:",null,"ADVENTURE WORKS"]
[]
[null,"ID","Anställds namn","Arbetade timmar, ej övertid","Semester, timmar","Sjukskriven, timmar","Övertid, timmar","Övertid, tillägg","Bruttolön","Skatter och avdrag","Andra avdrag","Nettolön"," ","Timlön","Skattestatus","Skatteavdrag","Statlig skatt","Kommunal skatt","Sociala avgifter","Egenavgifter","Totalt avdragna skatter","Avdrag, försäkring","Andra standradavdrag","Totalt standardavdrag"]
[null,1001,"Lars Svensson",50,5,1,null,null,{"$f":"SUM(Anställda[[#This Row],[Arbetade timmar, ej övertid]:[Sjukskriven, timmar]])*Anställda[[#This Row],[Timlön]]+Anställda[[#This Row],[Övertid, timmar]]*Anställda[[#This Row],[Övertid, tillägg]]","v":560},{"$f":"Anställda[[#This Row],[Bruttolön]]*Anställda[[#This Row],[Totalt avdragna skatter]] + Anställda[[#This Row],[Totalt standardavdrag]]","v":273.08000000000004},20,{"$f":"Anställda[[#This Row],[Bruttolön]]-Anställda[[#This Row],[Skatter och avdrag]]-Anställda[[#This Row],[Andra avdrag]]","v":266.91999999999996},null,10,1,4,2.3E-2,0.28000000000000003,6.3E-2,1.4500000000000001E-2,{"$f":"SUM(Anställda[[#This Row],[Statlig skatt]:[Egenavgifter]])","v":0.38050000000000006},20,40,{"$f":"SUM(Anställda[[#This Row],[Avdrag, försäkring]:[Andra standradavdrag]])","v":60}]
[null,1002,"Mikael Karlsson",40,null,null,null,null,{"$f":"SUM(Anställda[[#This Row],[Arbetade timmar, ej övertid]:[Sjukskriven, timmar]])*Anställda[[#This Row],[Timlön]]+Anställda[[#This Row],[Övertid, timmar]]*Anställda[[#This Row],[Övertid, tillägg]]","v":320},{"$f":"Anställda[[#This Row],[Bruttolön]]*Anställda[[#This Row],[Totalt avdragna skatter]] + Anställda[[#This Row],[Totalt standardavdrag]]","v":131.76000000000002},null,{"$f":"Anställda[[#This Row],[Bruttolön]]-Anställda[[#This Row],[Skatter och avdrag]]-Anställda[[#This Row],[Andra avdrag]]","v":188.23999999999998},null,8,1,1,2.3E-2,0.28000000000000003,6.3E-2,1.4500000000000001E-2,{"$f":"SUM(Anställda[[#This Row],[Statlig skatt]:[Egenavgifter]])","v":0.38050000000000006},0,10,{"$f":"SUM(Anställda[[#This Row],[Avdrag, försäkring]:[Andra standradavdrag]])","v":10}]
[null,1003,"Lars Wester",35,3,null,null,null,{"$f":"SUM(Anställda[[#This Row],[Arbetade timmar, ej övertid]:[Sjukskriven, timmar]])*Anställda[[#This Row],[Timlön]]+Anställda[[#This Row],[Övertid, timmar]]*Anställda[[#This Row],[Övertid, tillägg]]","v":532},{"$f":"Anställda[[#This Row],[Bruttolön]]*Anställda[[#This Row],[Totalt avdragna skatter]] + Anställda[[#This Row],[Totalt standardavdrag]]","v":240.42600000000004},null,{"$f":"Anställda[[#This Row],[Bruttolön]]-Anställda[[#This Row],[Skatter och avdrag]]-Anställda[[#This Row],[Andra avdrag]]","v":291.57399999999996},null,14,1,3,2.3E-2,0.28000000000000003,6.3E-2,1.4500000000000001E-2,{"$f":"SUM(Anställda[[#This Row],[Statlig skatt]:[Egenavgifter]])","v":0.38050000000000006},18,20,{"$f":"SUM(Anställda[[#This Row],[Avdrag, försäkring]:[Andra standradavdrag]])","v":38}]
[null,1008,"Mats Brodin",50,5,1,null,null,{"$f":"SUM(Anställda[[#This Row],[Arbetade timmar, ej övertid]:[Sjukskriven, timmar]])*Anställda[[#This Row],[Timlön]]+Anställda[[#This Row],[Övertid, timmar]]*Anställda[[#This Row],[Övertid, tillägg]]","v":1120},{"$f":"Anställda[[#This Row],[Bruttolön]]*Anställda[[#This Row],[Totalt avdragna skatter]] + Anställda[[#This Row],[Totalt standardavdrag]]","v":441.16000000000008},null,{"$f":"Anställda[[#This Row],[Bruttolön]]-Anställda[[#This Row],[Skatter och avdrag]]-Anställda[[#This Row],[Andra avdrag]]","v":678.83999999999992},null,20,1,0,2.3E-2,0.28000000000000003,6.3E-2,1.4500000000000001E-2,{"$f":"SUM(Anställda[[#This Row],[Statlig skatt]:[Egenavgifter]])","v":0.38050000000000006},15,null,{"$f":"SUM(Anställda[[#This Row],[Avdrag, försäkring]:[Andra standradavdrag]])","v":15}]
[null,1011,"Erika Bergholm",40,null,null,2,15,{"$f":"SUM(Anställda[[#This Row],[Arbetade timmar, ej övertid]:[Sjukskriven, timmar]])*Anställda[[#This Row],[Timlön]]+Anställda[[#This Row],[Övertid, timmar]]*Anställda[[#This Row],[Övertid, tillägg]]","v":430},{"$f":"Anställda[[#This Row],[Bruttolön]]*Anställda[[#This Row],[Totalt avdragna skatter]] + Anställda[[#This Row],[Totalt standardavdrag]]","v":223.61500000000004},null,{"$f":"Anställda[[#This Row],[Bruttolön]]-Anställda[[#This Row],[Skatter och avdrag]]-Anställda[[#This Row],[Andra avdrag]]","v":206.38499999999996},null,10,1,0,2.3E-2,0.28000000000000003,6.3E-2,1.4500000000000001E-2,{"$f":"SUM(Anställda[[#This Row],[Statlig skatt]:[Egenavgifter]])","v":0.38050000000000006},20,40,{"$f":"SUM(Anställda[[#This Row],[Avdrag, försäkring]:[Andra standradavdrag]])","v":60}]
[null,1012,"Daniel Franzén",40,5,1,null,null,{"$f":"SUM(Anställda[[#This Row],[Arbetade timmar, ej övertid]:[Sjukskriven, timmar]])*Anställda[[#This Row],[Timlön]]+Anställda[[#This Row],[Övertid, timmar]]*Anställda[[#This Row],[Övertid, tillägg]]","v":552},{"$f":"Anställda[[#This Row],[Bruttolön]]*Anställda[[#This Row],[Totalt avdragna skatter]] + Anställda[[#This Row],[Totalt standardavdrag]]","v":270.03600000000006},null,{"$f":"Anställda[[#This Row],[Bruttolön]]-Anställda[[#This Row],[Skatter och avdrag]]-Anställda[[#This Row],[Andra avdrag]]","v":281.96399999999994},null,12,1,4,2.3E-2,0.28000000000000003,6.3E-2,1.4500000000000001E-2,{"$f":"SUM(Anställda[[#This Row],[Statlig skatt]:[Egenavgifter]])","v":0.38050000000000006},20,40,{"$f":"SUM(Anställda[[#This Row],[Avdrag, försäkring]:[Andra standradavdrag]])","v":60}]
[null,1025,"Lisbeth Dahl",36,null,2,1,18,{"$f":"SUM(Anställda[[#This Row],[Arbetade timmar, ej övertid]:[Sjukskriven, timmar]])*Anställda[[#This Row],[Timlön]]+Anställda[[#This Row],[Övertid, timmar]]*Anställda[[#This Row],[Övertid, tillägg]]","v":474},{"$f":"Anställda[[#This Row],[Bruttolön]]*Anställda[[#This Row],[Totalt avdragna skatter]] + Anställda[[#This Row],[Totalt standardavdrag]]","v":225.35700000000003},25,{"$f":"Anställda[[#This Row],[Bruttolön]]-Anställda[[#This Row],[Skatter och avdrag]]-Anställda[[#This Row],[Andra avdrag]]","v":223.64299999999997},null,12,1,2,2.3E-2,0.28000000000000003,6.3E-2,1.4500000000000001E-2,{"$f":"SUM(Anställda[[#This Row],[Statlig skatt]:[Egenavgifter]])","v":0.38050000000000006},25,20,{"$f":"SUM(Anställda[[#This Row],[Avdrag, försäkring]:[Andra standradavdrag]])","v":45}]
[null,1032,"Lena Persson",40,5,1,null,null,{"$f":"SUM(Anställda[[#This Row],[Arbetade timmar, ej övertid]:[Sjukskriven, timmar]])*Anställda[[#This Row],[Timlön]]+Anställda[[#This Row],[Övertid, timmar]]*Anställda[[#This Row],[Övertid, tillägg]]","v":460},{"$f":"Anställda[[#This Row],[Bruttolön]]*Anställda[[#This Row],[Totalt avdragna skatter]] + Anställda[[#This Row],[Totalt standardavdrag]]","v":175.03000000000003},50,{"$f":"Anställda[[#This Row],[Bruttolön]]-Anställda[[#This Row],[Skatter och avdrag]]-Anställda[[#This Row],[Andra avdrag]]","v":234.96999999999997},null,10,1,3,2.3E-2,0.28000000000000003,6.3E-2,1.4500000000000001E-2,{"$f":"SUM(Anställda[[#This Row],[Statlig skatt]:[Egenavgifter]])","v":0.38050000000000006},null,null,{"$f":"SUM(Anställda[[#This Row],[Avdrag, försäkring]:[Andra standradavdrag]])","v":0}]
[null,1049,"Pär Johansson",40,1,null,null,null,{"$f":"SUM(Anställda[[#This Row],[Arbetade timmar, ej övertid]:[Sjukskriven, timmar]])*Anställda[[#This Row],[Timlön]]+Anställda[[#This Row],[Övertid, timmar]]*Anställda[[#This Row],[Övertid, tillägg]]","v":615},{"$f":"Anställda[[#This Row],[Bruttolön]]*Anställda[[#This Row],[Totalt avdragna skatter]] + Anställda[[#This Row],[Totalt standardavdrag]]","v":259.00750000000005},23,{"$f":"Anställda[[#This Row],[Bruttolön]]-Anställda[[#This Row],[Skatter och avdrag]]-Anställda[[#This Row],[Andra avdrag]]","v":332.99249999999995},null,15,1,2,2.3E-2,0.28000000000000003,6.3E-2,1.4500000000000001E-2,{"$f":"SUM(Anställda[[#This Row],[Statlig skatt]:[Egenavgifter]])","v":0.38050000000000006},25,null,{"$f":"SUM(Anställda[[#This Row],[Avdrag, försäkring]:[Andra standradavdrag]])","v":25}]
[null,"Summa",{"$f":"SUBTOTAL(103,Anställda[Anställds namn])","v":9},{"$f":"SUBTOTAL(109,Anställda[Arbetade timmar, ej övertid])","v":371},{"$f":"SUBTOTAL(109,Anställda[Semester, timmar])","v":24},{"$f":"SUBTOTAL(109,Anställda[Sjukskriven, timmar])","v":6},{"$f":"SUBTOTAL(109,Anställda[Övertid, timmar])","v":3},null,{"$f":"SUBTOTAL(109,Anställda[Bruttolön])","v":5063},{"$f":"SUBTOTAL(109,Anställda[Skatter och avdrag])","v":2239.4715000000001},{"$f":"SUBTOTAL(109,Anställda[Andra avdrag])","v":118},{"$f":"SUBTOTAL(109,Anställda[Nettolön])","v":2705.5284999999994},null,null,null,null,null,null,null,null,null,{"$f":"SUBTOTAL(109,Anställda[Avdrag, försäkring])","v":143},{"$f":"SUBTOTAL(109,Anställda[Andra standradavdrag])","v":170},{"$f":"SUBTOTAL(109,Anställda[Totalt standardavdrag])","v":313}]

{"sheet":"spec_mall","index":1,"n_rows":47,"n_cols":13,"rows_kept":47,"cut":false,"hidden":true,"merged":[[2,7,2,8],[14,7,14,8],[26,7,26,8],[38,7,38,8],[38,11,38,12],[26,11,26,12],[14,11,14,12],[2,11,2,12],[2,3,2,4],[14,3,14,4],[26,3,26,4],[38,3,38,4],[44,2,44,3],[8,2,8,3],[9,2,9,3],[45,2,45,3],[32,2,32,3],[33,2,33,3],[20,2,20,3],[21,2,21,3]]}
[]
[null,null,{"$f":"Företagsnamn","v":"ADVENTURE WORKS"}]
[null,null,"PERIOD",{"$f":"PeriodSlutar","v":41372},null,null,"NAMN",{"$f":"IFERROR(INDEX(Anställda[Anställds namn],Spec1),\"\")","v":"Lars Svensson"},null,null,"ANSTÄLLNINGSNR",{"$f":"IFERROR(INDEX(Anställda[ID],Spec1),\"\")","v":1001}]
[null,null,"Skattestatus",null,{"$f":"IFERROR(INDEX(Anställda[Skattestatus],Spec1),\"\")","v":1},null,"Skatteavdrag (från W-4 (USA))",null,{"$f":"IFERROR(INDEX(Anställda[Skatteavdrag],Spec1),\"\")","v":4},null,"Arbetade timmar",null,{"$f":"IFERROR(INDEX(Anställda[Arbetade timmar, ej övertid],Spec1),\"\")","v":50}]
[null,null,"Timlön",null,{"$f":"IFERROR(INDEX(Anställda[Timlön],Spec1),\"\")","v":10},null,"Övertid, tillägg",null,{"$f":"IFERROR(INDEX(Anställda[Övertid, tillägg],Spec1),\"\")","v":0},null,"Sjukskriven, timmar",null,{"$f":"IFERROR(INDEX(Anställda[Sjukskriven, timmar],Spec1),\"\")","v":1}]
[null,null,"Sociala avgifter",null,{"$f":"IFERROR(INDEX(Anställda[Sociala avgifter],Spec1)  *  INDEX(Anställda[Bruttolön],Spec1),\"\")","v":35.28},null,"Kommunal skatt ",null,{"$f":"IFERROR(INDEX(Anställda[Kommunal skatt],Spec1)  *  INDEX(Anställda[Bruttolön],Spec1),\"\")","v":156.80000000000001},null,"Semester, timmar",null,{"$f":"IFERROR(INDEX(Anställda[Semester, timmar],Spec1),\"\")","v":5}]
[null,null,"Egenavgifter ",null,{"$f":"IFERROR(INDEX(Anställda[Egenavgifter],Spec1)  *  INDEX(Anställda[Bruttolön],Spec1),\"\")","v":8.120000000000001},null,"Statlig skatt ",null,{"$f":"IFERROR(INDEX(Anställda[Statlig skatt],Spec1)  *  INDEX(Anställda[Bruttolön],Spec1),\"\")","v":12.879999999999999},null,"Övertid, timmar",null,{"$f":"IFERROR(INDEX(Anställda[Övertid, timmar],Spec1),\"\")","v":0}]
[null,null,"Avdrag, försäkring",null,{"$f":"IFERROR(INDEX(Anställda[Avdrag, försäkring],Spec1),\"\")","v":20},null,"Andra standardavdrag",null,{"$f":"IFERROR(INDEX(Anställda[Andra standradavdrag],Spec1),\"\")","v":40},null,"Bruttolön",null,{"$f":"IFERROR(INDEX(Anställda[Bruttolön],Spec1),\"\")","v":560}]
[null,null,"Totalt skatter och",null,{"$f":"IFERROR(INDEX(Anställda[Skatter och avdrag],Spec1),\"\")","v":273.08000000000004},null,"Andra avdrag",null,{"$f":"IFERROR(INDEX(Anställda[Andra avdrag],Spec1),\"\")","v":20},null,"Totalt skatter och avdrag ",null,{"$f":"IFERROR(INDEX(Anställda[Skatter och avdrag],Spec1)  +  INDEX(Anställda[Andra avdrag],Spec1),\"\")","v":293.08000000000004}]
[null,null,"standardavdrag "]
[null,null,null,null,null,null,null,null,null,null,"NETTOLÖN",null,{"$f":"IFERROR(INDEX(Anställda[Nettolön],Spec1),\"\")","v":266.91999999999996}]
[]
[]
[null,null,{"$f":"Företagsnamn","v":"ADVENTURE WORKS"}]
[null,null,"PERIOD",{"$f":"PeriodSlutar","v":41372},null,null,"NAMN",{"$f":"IFERROR(INDEX(Anställda[Anställds namn],Spec1),\"\")","v":"Mikael Karlsson"},null,null,"ANSTÄLLNINGSNR",{"$f":"IFERROR(INDEX(Anställda[ID],Spec1),\"\")","v":1002}]
[null,null,"Skattestatus",null,{"$f":"IFERROR(INDEX(Anställda[Skattestatus],Spec1),\"\")","v":1},null,"Skatteavdrag (från W-4 (USA))",null,{"$f":"IFERROR(INDEX(Anställda[Skatteavdrag],Spec1),\"\")","v":1},null,"Arbetade timmar",null,{"$f":"IFERROR(INDEX(Anställda[Arbetade timmar, ej övertid],Spec1),\"\")","v":40}]
[null,null,"Timlön",null,{"$f":"IFERROR(INDEX(Anställda[Timlön],Spec1),\"\")","v":8},null,"Övertid, tillägg",null,{"$f":"IFERROR(INDEX(Anställda[Övertid, tillägg],Spec1),\"\")","v":0},null,"Sjukskriven, timmar",null,{"$f":"IFERROR(INDEX(Anställda[Sjukskriven, timmar],Spec1),\"\")","v":0}]
[null,null,"Sociala avgifter",null,{"$f":"IFERROR(INDEX(Anställda[Sociala avgifter],Spec1)  *  INDEX(Anställda[Bruttolön],Spec1),\"\")","v":20.16},null,"Kommunal skatt ",null,{"$f":"IFERROR(INDEX(Anställda[Kommunal skatt],Spec1)  *  INDEX(Anställda[Bruttolön],Spec1),\"\")","v":89.600000000000009},null,"Semester, timmar",null,{"$f":"IFERROR(INDEX(Anställda[Semester, timmar],Spec1),\"\")","v":0}]
[null,null,"Egenavgifter ",null,{"$f":"IFERROR(INDEX(Anställda[Egenavgifter],Spec1)  *  INDEX(Anställda[Bruttolön],Spec1),\"\")","v":4.6400000000000006},null,"Statlig skatt ",null,{"$f":"IFERROR(INDEX(Anställda[Statlig skatt],Spec1)  *  INDEX(Anställda[Bruttolön],Spec1),\"\")","v":7.3599999999999994},null,"Övertid, timmar",null,{"$f":"IFERROR(INDEX(Anställda[Övertid, timmar],Spec1),\"\")","v":0}]
[null,null,"Avdrag, försäkring",null,{"$f":"IFERROR(INDEX(Anställda[Avdrag, försäkring],Spec1),\"\")","v":0},null,"Andra standardavdrag",null,{"$f":"IFERROR(INDEX(Anställda[Andra standradavdrag],Spec1),\"\")","v":10},null,"Bruttolön",null,{"$f":"IFERROR(INDEX(Anställda[Bruttolön],Spec1),\"\")","v":320}]
[null,null,"Totalt skatter och",null,{"$f":"IFERROR(INDEX(Anställda[Skatter och avdrag],Spec1),\"\")","v":131.76000000000002},null,"Andra avdrag",null,{"$f":"IFERROR(INDEX(Anställda[Andra avdrag],Spec1),\"\")","v":0},null,"Totalt skatter och avdrag ",null,{"$f":"IFERROR(INDEX(Anställda[Skatter och avdrag],Spec1)  +  INDEX(Anställda[Andra avdrag],Spec1),\"\")","v":131.76000000000002}]
[null,null,"standardavdrag "]
[null,null,null,null,null,null,null,null,null,null,"NETTOLÖN",null,{"$f":"IFERROR(INDEX(Anställda[Nettolön],Spec1),\"\")","v":188.23999999999998}]
[]
[]
[null,null,{"$f":"Företagsnamn","v":"ADVENTURE WORKS"}]
[null,null,"PEROID",{"$f":"PeriodSlutar","v":41372},null,null,"NAMN",{"$f":"IFERROR(INDEX(Anställda[Anställds namn],Spec1),\"\")","v":"Lars Wester"},null,null,"ANSTÄLLNINGSNR",{"$f":"IFERROR(INDEX(Anställda[ID],Spec1),\"\")","v":1003}]
[null,null,"Skattestatus",null,{"$f":"IFERROR(INDEX(Anställda[Skattestatus],Spec1),\"\")","v":1},null,"Skatteavdrag (från W-4 (USA))",null,{"$f":"IFERROR(INDEX(Anställda[Skatteavdrag],Spec1),\"\")","v":3},null,"Arbetade timmar",null,{"$f":"IFERROR(INDEX(Anställda[Arbetade timmar, ej övertid],Spec1),\"\")","v":35}]
[null,null,"Timlön",null,{"$f":"IFERROR(INDEX(Anställda[Timlön],Spec1),\"\")","v":14},null,"Övertid, tillägg",null,{"$f":"IFERROR(INDEX(Anställda[Övertid, tillägg],Spec1),\"\")","v":0},null,"Sjukskriven, timmar",null,{"$f":"IFERROR(INDEX(Anställda[Sjukskriven, timmar],Spec1),\"\")","v":0}]
[null,null,"Sociala avgifter",null,{"$f":"IFERROR(INDEX(Anställda[Sociala avgifter],Spec1)  *  INDEX(Anställda[Bruttolön],Spec1),\"\")","v":33.515999999999998},null,"Kommunal skatt ",null,{"$f":"IFERROR(INDEX(Anställda[Kommunal skatt],Spec1)  *  INDEX(Anställda[Bruttolön],Spec1),\"\")","v":148.96},null,"Semester, timmar",null,{"$f":"IFERROR(INDEX(Anställda[Semester, timmar],Spec1),\"\")","v":3}]
[null,null,"Egenavgifter ",null,{"$f":"IFERROR(INDEX(Anställda[Egenavgifter],Spec1)  *  INDEX(Anställda[Bruttolön],Spec1),\"\")","v":7.7140000000000004},null,"Statlig skatt ",null,{"$f":"IFERROR(INDEX(Anställda[Statlig skatt],Spec1)  *  INDEX(Anställda[Bruttolön],Spec1),\"\")","v":12.236000000000001},null,"Övertid, timmar",null,{"$f":"IFERROR(INDEX(Anställda[Övertid, timmar],Spec1),\"\")","v":0}]
[null,null,"Avdrag, försäkring",null,{"$f":"IFERROR(INDEX(Anställda[Avdrag, försäkring],Spec1),\"\")","v":18},null,"Andra standardavdrag",null,{"$f":"IFERROR(INDEX(Anställda[Andra standradavdrag],Spec1),\"\")","v":20},null,"Bruttolön",null,{"$f":"IFERROR(INDEX(Anställda[Bruttolön],Spec1),\"\")","v":532}]
[null,null,"Totalt skatter och",null,{"$f":"IFERROR(INDEX(Anställda[Skatter och avdrag],Spec1),\"\")","v":240.42600000000004},null,"Andra avdrag",null,{"$f":"IFERROR(INDEX(Anställda[Andra avdrag],Spec1),\"\")","v":0},null,"Totalt skatter och avdrag ",null,{"$f":"IFERROR(INDEX(Anställda[Skatter och avdrag],Spec1)  +  INDEX(Anställda[Andra avdrag],Spec1),\"\")","v":240.42600000000004}]
[null,null,"standardavdrag "]
[null,null,null,null,null,null,null,null,null,null,"NETTOLÖN",null,{"$f":"IFERROR(INDEX(Anställda[Nettolön],Spec1),\"\")","v":291.57399999999996}]
[]
[]
[null,null,{"$f":"Företagsnamn","v":"ADVENTURE WORKS"}]
[null,null,"PERIOD",{"$f":"PeriodSlutar","v":41372},null,null,"NAMN",{"$f":"IFERROR(INDEX(Anställda[Anställds namn],Spec1),\"\")","v":"Mats Brodin"},null,null,"ANSTÄLLNINGSNR",{"$f":"IFERROR(INDEX(Anställda[ID],Spec1),\"\")","v":1008}]
[null,null,"Skattestatus",null,{"$f":"IFERROR(INDEX(Anställda[Skattestatus],Spec1),\"\")","v":1},null,"Skatteavdrag (från W-4 (USA))",null,{"$f":"IFERROR(INDEX(Anställda[Skatteavdrag],Spec1),\"\")","v":0},null,"Arbetade timmar",null,{"$f":"IFERROR(INDEX(Anställda[Arbetade timmar, ej övertid],Spec1),\"\")","v":50}]
[null,null,"Timlön",null,{"$f":"IFERROR(INDEX(Anställda[Timlön],Spec1),\"\")","v":20},null,"Övertid, tillägg",null,{"$f":"IFERROR(INDEX(Anställda[Övertid, tillägg],Spec1),\"\")","v":0},null,"Sjukskriven, timmar",null,{"$f":"IFERROR(INDEX(Anställda[Sjukskriven, timmar],Spec1),\"\")","v":1}]
[null,null,"Sociala avgifter",null,{"$f":"IFERROR(INDEX(Anställda[Sociala avgifter],Spec1)  *  INDEX(Anställda[Bruttolön],Spec1),\"\")","v":70.56},null,"Kommunal skatt ",null,{"$f":"IFERROR(INDEX(Anställda[Kommunal skatt],Spec1)  *  INDEX(Anställda[Bruttolön],Spec1),\"\")","v":313.60000000000002},null,"Semester, timmar",null,{"$f":"IFERROR(INDEX(Anställda[Semester, timmar],Spec1),\"\")","v":5}]
[null,null,"Egenavgifter ",null,{"$f":"IFERROR(INDEX(Anställda[Egenavgifter],Spec1)  *  INDEX(Anställda[Bruttolön],Spec1),\"\")","v":16.240000000000002},null,"Statlig skatt ",null,{"$f":"IFERROR(INDEX(Anställda[Statlig skatt],Spec1)  *  INDEX(Anställda[Bruttolön],Spec1),\"\")","v":25.759999999999998},null,"Övertid, timmar",null,{"$f":"IFERROR(INDEX(Anställda[Övertid, timmar],Spec1),\"\")","v":0}]
[null,null,"Avdrag, försäkring",null,{"$f":"IFERROR(INDEX(Anställda[Avdrag, försäkring],Spec1),\"\")","v":15},null,"Andra standardavdrag",null,{"$f":"IFERROR(INDEX(Anställda[Andra standradavdrag],Spec1),\"\")","v":0},null,"Bruttolön",null,{"$f":"IFERROR(INDEX(Anställda[Bruttolön],Spec1),\"\")","v":1120}]
[null,null,"Totalt skatter och",null,{"$f":"IFERROR(INDEX(Anställda[Skatter och avdrag],Spec1),\"\")","v":441.16000000000008},null,"Andra avdrag",null,{"$f":"IFERROR(INDEX(Anställda[Andra avdrag],Spec1),\"\")","v":0},null,"Totalt skatter och avdrag ",null,{"$f":"IFERROR(INDEX(Anställda[Skatter och avdrag],Spec1)  +  INDEX(Anställda[Andra avdrag],Spec1),\"\")","v":441.16000000000008}]
[null,null,"standardavdrag "]
[null,null,null,null,null,null,null,null,null,null,"NETTOLÖN",null,{"$f":"IFERROR(INDEX(Anställda[Nettolön],Spec1),\"\")","v":678.83999999999992}]